[Event "Najdorf Memorial-A 2022"]
[Site "Warsaw"]
[Date "2022.07.09"]
[Round "1.9"]
[White "Danielyan, Vahe"]
[Black "Ratajczak, Hubert"]
[Result "1/2-1/2"]
[ECO "B51"]
[WhiteElo "2295"]
[BlackElo "1943"]
[Annotator "RC"]
[PlyCount "80"]
[EventDate "2022.07.09"]
[EventType "swiss"]
[EventCountry "POL"]
[SourceTitle "playchess.com"]
[Source "ChessBase"]
[SourceQuality "1"]
[TimeControl "40/5400+30:1800+30"]

1. e4 {[%emt 0:00:07]} c5 {[%emt 0:00:08]} 2. Nf3 {[%emt 0:00:07]} d6 {[%emt 0:00:05]} 3. Bb5+ {[%emt 0:00:08]} Nd7 {[%emt 0:00:35]} 4. Ba4 {[%emt 0:00:07]} Ngf6 {[%emt 0:03:02]} 5. O-O {[%emt 0:00:06]} g6 {[%emt 0:05:07]} 6. Re1 {[%emt 0:00:06]} Bg7 {[%emt 0:00:37]} 7. c3 {[%emt 0:00:06]} O-O {[%emt 0:01:24]} 8. d4 {[%emt 0:00:05]} a6 {[%emt 0:07:58]} 9. h3 {[%emt 0:01:13]} b5 {[%emt 0:03:40]} 10. Bc2 {[%emt 0:00:18]} Bb7 {[%emt 0:01:50]} 11. a4 {[%emt 0:00:06]} Qc7 {[%emt 0:05:22]} 12. d5 {[%emt 0:00:52]} e6 {[%emt 0:02:52]} 13. axb5 {[%emt 0:00:55]} axb5 {[%emt 0:00:07]} 14. Rxa8 {[%emt 0:00:07]} Rxa8 {[%emt 0:03:23]} 15. dxe6 {[%emt 0:00:05]} fxe6 {[%emt 0:00:02]} 16. Na3 {[%emt 0:01:01]} Bc6 {[%emt 0:03:44]} 17. Ng5 {[%emt 0:02:10]} Re8 {[%emt 0:00:47]} 18. f4 {[%emt 0:00:05]} h6 {[%emt 0:00:47]} 19. Nf3 {[%emt 0:00:49]} e5 {[%emt 0:05:08]} 20. Nh4 {[%emt 0:02:35]} Kh7 {[%emt 0:01:58]} 21. f5 {[%emt 0:01:30]} g5 {[%emt 0:02:20]} 22. Nf3 {[%emt 0:00:08]} b4 {[%emt 0:07:09]} 23. Nc4 {[%emt 0:01:14]} d5 {[%emt 0:00:12]} 24. exd5 {[%emt 0:04:28]} Bxd5 {[%emt 0:00:07]} 25. Nfd2 {[%emt 0:00:18]} e4 {[%emt 0:04:53]} 26. Ne3 {[%emt 0:00:06]} Bc6 {[%emt 0:01:29]} 27. Ndc4 {[%emt 0:01:06]} Ne5 {[%emt 0:04:47]} 28. Nxe5 {[%emt 0:01:32]} Qxe5 {[%emt 0:03:06]} 29. c4 Re7 {[%emt 0:03:32]} 30. Qe2 {[%emt 0:03:01]} Qg3 {[%emt 0:08:32]} 31. b3 {[%emt 0:03:25]} Ra7 {[%emt 0:04:14]} 32. Qf2 {[%emt 0:04:39]} Qxf2+ {[%emt 0:02:31]} 33. Kxf2 {[%emt 0:00:03]} Ra2 {[%emt 0:02:36]} 34. Re2 {[%emt 0:00:05]} Nh5 {[%emt 0:03:38]} 35. g3 {[%emt 0:02:21]} Be5 {[%emt 0:00:12]} 36. Nf1 {[%emt 0:02:34]} Ra1 {[%emt 0:00:56]} 37. Re1 {[%emt 0:08:54]} Ra2 {[%emt 0:00:12]} 38. Re2 {[%emt 0:00:31]} Ra1 {[%emt 0:00:01]} 39. Re1 {[%emt 0:11:08]} Ra2 {[%emt 0:00:01]} 40. Re2 Ra1 1/2-1/2

[Event "Najdorf Memorial-A 2022"]
[Site "Warsaw"]
[Date "2022.07.09"]
[Round "1.9"]
[White "Haliniak, Wojciech"]
[Black "Janeczko, Jakub"]
[Result "1/2-1/2"]
[ECO "A03"]
[WhiteElo "1827"]
[BlackElo "2080"]
[Annotator "NA RC"]
[PlyCount "57"]
[EventDate "2022.07.09"]
[EventType "swiss"]
[EventCountry "POL"]
[SourceTitle "playchess.com"]
[Source "ChessBase"]
[SourceQuality "1"]
[TimeControl "40/5400+30:1800+30"]

1. f4 {[%emt 0:00:28]} d5 {[%emt 0:00:19]} 2. Nf3 {[%emt 0:00:07]} c5 {[%emt 0:00:04]} 3. e3 {[%emt 0:00:44]} g6 {[%emt 0:00:56]} 4. d4 {[%emt 0:05:17]} Bg7 {[%emt 0:03:38]} 5. c3 {[%emt 0:01:10]} Nf6 {[%emt 0:06:25]} 6. Bd3 {[%emt 0:00:46]} cxd4 {[%emt 0:07:58]} 7. exd4 {[%emt 0:02:17]} Nc6 {[%emt 0:00:59]} 8. O-O {[%emt 0:02:38]} Bf5 {[%emt 0:02:14]} 9. Bxf5 {[%emt 0:02:19]} gxf5 {[%emt 0:00:50]} 10. b3 {[%emt 0:06:25]} Ne4 {[%emt 0:10:29]} 11. Ne5 {[%emt 0:02:59]} h5 {[%emt 0:04:14]} 12. Bb2 {[%emt 0:09:04]} Rc8 {[%emt 0:10:26]} 13. Nd2 {[%emt 0:15:55]} Nxc3 {[%emt 0:12:57]} 14. Bxc3 {[%emt 0:00:18]} Nxe5 {[%emt 0:00:05]} 15. fxe5 {[%emt 0:00:14]} Rxc3 {[%emt 0:00:04]} 16. Rxf5 {[%emt 0:01:19]} Qb6 {[%emt 0:04:52]} 17. Nf3 {[%emt 0:06:19]} e6 {[%emt 0:01:16]} 18. Qe1 {[%emt 0:12:48]} Rd3 {[%emt 0:05:13]} 19. Qf1 {[%emt 0:03:18]} Rxd4 {[%emt 0:11:55]} 20. Nxd4 {[%emt 0:00:40]} Bxe5 {[%emt 0:00:48]} 21. Re1 {[%emt 0:08:52]} Qxd4+ {[%emt 0:03:04]} 22. Rf2 {[%emt 0:00:31]} h4 {[%emt 0:01:55]} 23. Qb5+ {[%emt 0:02:20]} Kf8 {[%emt 0:00:18]} 24. Qd7 {[%emt 0:04:58]} Bxh2+ {[%emt 0:00:29]} 25. Kxh2 {[%emt 0:02:15]} Qxf2 {[%emt 0:00:02]} 26. Qd8+ {[%emt 0:00:06]} Kg7 {[%emt 0:00:07]} 27. Qg5+ {[%emt 0:00:05]} Kh7 {[%emt 0:01:10]} 28. Qh5+ {[%emt 0:00:03]} Kg7 {[%emt 0:00:18]} 29. Qg5+ {[%emt 0:00:08]} 1/2-1/2

[Event "Najdorf Memorial-A 2022"]
[Site "Warsaw"]
[Date "2022.07.09"]
[Round "1.10"]
[White "Praczukowski, Stanislaw"]
[Black "Lee, Hyo"]
[Result "1-0"]
[ECO "E97"]
[WhiteElo "2055"]
[BlackElo "1818"]
[Annotator "NA RC"]
[PlyCount "56"]
[EventDate "2022.07.09"]
[EventType "swiss"]
[EventCountry "POL"]
[SourceTitle "playchess.com"]
[Source "ChessBase"]
[SourceQuality "1"]
[TimeControl "40/5400+30:1800+30"]

1. d4 Nf6 2. c4 g6 3. Nc3 Bg7 4. e4 d6 5. Nf3 O-O 6. Be2 e5 7. O-O Nc6 8. dxe5 dxe5 9. Bg5 Bg4 10. Qxd8 Raxd8 11. Nd5 Rd6 12. Bxf6 Bxf6 13. c5 Rxd5 14. exd5 Nb4 15. h3 Bf5 16. Rad1 Nxa2 17. Ra1 Nb4 18. Rxa7 Nxd5 19. Rxb7 e4 20. Nd2 e3 21. fxe3 Nxe3 22. Rf3 Nd5 23. Bc4 Bd4+ 24. Kh1 Rd8 25. g4 Be6 26. Ne4 h6 27. b3 Ra8 28. Rf1 Ra4 1-0

[Event "Najdorf Memorial-A 2022"]
[Site "Warsaw"]
[Date "2022.07.09"]
[Round "1.10"]
[White "Szwaj, Jacek"]
[Black "Chomczyk, Marek"]
[Result "0-1"]
[ECO "A05"]
[WhiteElo "1938"]
[BlackElo "2290"]
[Annotator "RC"]
[PlyCount "92"]
[EventDate "2022.07.09"]
[EventType "swiss"]
[EventCountry "POL"]
[SourceTitle "playchess.com"]
[Source "ChessBase"]
[SourceQuality "1"]
[TimeControl "40/5400+30:1800+30"]

1. Nf3 {[%emt 0:00:06]} Nf6 {[%emt 0:00:46]} 2. g3 {[%emt 0:00:11]} g6 {[%emt 0:00:33]} 3. b3 {[%emt 0:00:19]} Bg7 {[%emt 0:00:22]} 4. Bb2 {[%emt 0:00:06]} O-O {[%emt 0:00:28]} 5. Bg2 {[%emt 0:00:12]} c5 {[%emt 0:00:59]} 6. c4 {[%emt 0:01:21]} Nc6 {[%emt 0:02:13]} 7. O-O {[%emt 0:00:47]} d6 {[%emt 0:04:09]} 8. d4 {[%emt 0:08:47]} Ne4 {[%emt 0:07:01]} 9. Nc3 {[%emt 0:10:33]} Nxc3 {[%emt 0:02:48]} 10. Bxc3 {[%emt 0:00:08]} Bg4 {[%emt 0:00:10]} 11. e3 {[%emt 0:00:52]} cxd4 {[%emt 0:00:54]} 12. exd4 {[%emt 0:06:29]} Qb6 {[%emt 0:01:26]} 13. Qd3 {[%emt 0:03:37]} Bxf3 {[%emt 0:05:55]} 14. Bxf3 {[%emt 0:00:59]} Nxd4 {[%emt 0:00:21]} 15. Bxd4 {[%emt 0:01:03]} Bxd4 {[%emt 0:00:18]} 16. Bxb7 {[%emt 0:00:25]} Rab8 {[%emt 0:01:29]} 17. Rad1 {[%emt 0:01:06]} Bxf2+ {[%emt 0:00:07]} 18. Rxf2 {[%emt 0:00:07]} Rxb7 {[%emt 0:00:05]} 19. Qe4 {[%emt 0:02:12]} Rc7 {[%emt 0:02:03]} 20. h4 {[%emt 0:00:53]} Qb7 {[%emt 0:04:23]} 21. Qf4 {[%emt 0:06:35]} Rc5 {[%emt 0:00:22]} 22. g4 {[%emt 0:00:11]} Re5 {[%emt 0:01:19]} 23. Kh2 {[%emt 0:01:06]} Qe4 {[%emt 0:01:37]} 24. Qg3 {[%emt 0:02:49]} Qe3 {[%emt 0:07:38]} 25. Qxe3 {[%emt 0:01:15]} Rxe3 {[%emt 0:00:10]} 26. Rd5 {[%emt 0:00:03]} Rc8 {[%emt 0:05:30]} 27. Ra5 {[%emt 0:02:10]} Rc7 {[%emt 0:00:05]} 28. Kg2 {[%emt 0:00:34]} Kg7 {[%emt 0:00:40]} 29. g5 {[%emt 0:02:37]} Rd3 {[%emt 0:04:23]} 30. Rf3 {[%emt 0:03:41]} Rd4 {[%emt 0:00:10]} 31. Kg3 {[%emt 0:00:09]} e6 {[%emt 0:01:07]} 32. a3 {[%emt 0:00:35]} h6 {[%emt 0:00:12]} 33. Re3 {[%emt 0:01:17]} hxg5 {[%emt 0:07:12]} 34. hxg5 {[%emt 0:00:07]} Rc5 {[%emt 0:00:30]} 35. Rxc5 {[%emt 0:05:17]} dxc5 {[%emt 0:00:14]} 36. Kf3 {[%emt 0:00:12]} Kf8 {[%emt 0:00:45]} 37. Re5 {[%emt 0:03:19]} Rd3+ {[%emt 0:00:10]} 38. Re3 {[%emt 0:00:04]} Rxe3+ {[%emt 0:00:38]} 39. Kxe3 {[%emt 0:00:09]} Ke7 {[%emt 0:00:15]} 40. b4 {[%emt 0:00:00]} cxb4 {[%emt 0:00:00]} 41. axb4 {[%emt 0:01:34]} f6 {[%emt 0:00:32]} 42. Kf4 {[%emt 0:01:17]} fxg5+ {[%emt 0:00:24]} 43. Kxg5 {[%emt 0:00:13]} e5 {[%emt 0:00:07]} 44. c5 {[%emt 0:01:12]} a6 {[%emt 0:00:13]} 45. Kg4 {[%emt 0:00:07]} Kd7 {[%emt 0:00:13]} 46. Kf3 {[%emt 0:00:57]} g5 {[%emt 0:00:07]} 0-1

[Event "Najdorf Memorial-A 2022"]
[Site "Warsaw"]
[Date "2022.07.09"]
[Round "1.11"]
[White "Fiedorek, Michal"]
[Black "Stachecki, Mikolaj"]
[Result "1-0"]
[ECO "A14"]
[WhiteElo "2289"]
[BlackElo "1918"]
[Annotator "RC"]
[PlyCount "73"]
[EventDate "2022.07.09"]
[EventType "swiss"]
[EventCountry "POL"]
[SourceTitle "playchess.com"]
[Source "ChessBase"]
[SourceQuality "1"]
[TimeControl "40/5400+30:1800+30"]

1. Nf3 {[%emt 0:01:30]} Nf6 {[%emt 0:00:34]} 2. c4 {[%emt 0:00:06]} e6 {[%emt 0:00:25]} 3. g3 {[%emt 0:01:03]} d5 {[%emt 0:00:24]} 4. Bg2 {[%emt 0:00:08]} Be7 {[%emt 0:00:28]} 5. O-O {[%emt 0:00:09]} O-O {[%emt 0:00:14]} 6. b3 {[%emt 0:00:22]} d4 {[%emt 0:11:43]} 7. e3 {[%emt 0:01:08]} c5 {[%emt 0:07:21]} 8. exd4 {[%emt 0:00:41]} cxd4 {[%emt 0:00:05]} 9. d3 {[%emt 0:00:17]} Nc6 {[%emt 0:00:36]} 10. Re1 {[%emt 0:00:13]} Qc7 {[%emt 0:03:19]} 11. a3 {[%emt 0:07:35]} a5 {[%emt 0:02:56]} 12. Bf4 {[%emt 0:01:29]} Bd6 {[%emt 0:02:36]} 13. Bxd6 {[%emt 0:00:14]} Qxd6 {[%emt 0:00:06]} 14. Nbd2 {[%emt 0:04:30]} Nd7 {[%emt 0:22:18]} 15. Qc2 {[%emt 0:05:48]} f5 {[%emt 0:06:16]} 16. Ng5 {[%emt 0:04:40]} Nc5 {[%emt 0:01:49]} 17. f4 {[%emt 0:00:11]} Bd7 {[%emt 0:04:57]} 18. Rab1 {[%emt 0:01:48]} h6 {[%emt 0:04:22]} 19. Ngf3 {[%emt 0:00:35]} Na6 {[%emt 0:00:55]} 20. Qb2 {[%emt 0:05:16]} Rae8 {[%emt 0:08:37]} 21. Ne5 {[%emt 0:02:42]} g5 {[%emt 0:00:10]} 22. Ndf3 {[%emt 0:03:46]} g4 {[%emt 0:01:28]} 23. Nh4 {[%emt 0:02:30]} Kh7 {[%emt 0:02:06]} 24. Rbc1 {[%emt 0:03:19]} Rd8 {[%emt 0:06:16]} 25. h3 {[%emt 0:09:58]} gxh3 {[%emt 0:02:24]} 26. Bxh3 {[%emt 0:00:13]} Nxe5 {[%emt 0:00:38]} 27. Rxe5 {[%emt 0:00:59]} Nc5 {[%emt 0:03:01]} 28. Qc2 {[%emt 0:01:13]} Bc6 {[%emt 0:01:29]} 29. Rce1 {[%emt 0:01:00]} Rf6 {[%emt 0:00:57]} 30. b4 {[%emt 0:01:17]} axb4 {[%emt 0:00:05]} 31. axb4 {[%emt 0:00:05]} Nd7 {[%emt 0:01:22]} 32. c5 {[%emt 0:06:51]} Qf8 {[%emt 0:00:38]} 33. Rxe6 {[%emt 0:00:55]} Qg8 {[%emt 0:00:31]} 34. Bxf5+ {[%emt 0:01:26]} Kh8 {[%emt 0:00:33]} 35. Ng6+ {[%emt 0:01:24]} Rxg6 {[%emt 0:00:12]} 36. Rxg6 {[%emt 0:00:08]} Qd5 {[%emt 0:00:45]} 37. Qh2 {[%emt 0:01:00]} 1-0

[Event "Najdorf Memorial-A 2022"]
[Site "Warsaw"]
[Date "2022.07.09"]
[Round "1.11"]
[White "Michalska, Aleksandra"]
[Black "Shilov, Sergej"]
[Result "1/2-1/2"]
[ECO "B24"]
[WhiteElo "1814"]
[BlackElo "2048"]
[Annotator "NA COMBH"]
[PlyCount "56"]
[EventDate "2022.07.09"]
[EventType "swiss"]
[EventCountry "POL"]
[SourceTitle "playchess.com"]
[Source "ChessBase"]
[SourceQuality "1"]
[TimeControl "40/5400+30:1800+30"]

1. e4 {[%emt 0:00:04]} c5 {[%emt 0:00:49]} 2. Nc3 {[%emt 0:01:01]} Nc6 {[%emt 0:00:17]} 3. Bb5 {[%emt 0:01:10]} Nd4 {[%emt 0:02:47]} 4. Bc4 {[%emt 0:02:14]} g6 {[%emt 0:01:10]} 5. Nge2 {[%emt 0:02:36]} Bg7 {[%emt 0:01:55]} 6. d3 {[%emt 0:02:25]} e6 {[%emt 0:00:29]} 7. O-O {[%emt 0:03:01]} Ne7 {[%emt 0:00:50]} 8. Bb3 {[%emt 0:04:46]} Nec6 {[%emt 0:05:08]} 9. Nxd4 {[%emt 0:03:22]} Nxd4 {[%emt 0:01:31]} 10. Ne2 {[%emt 0:02:01]} Nxb3 {[%emt 0:04:17]} 11. axb3 {[%emt 0:01:29]} d5 {[%emt 0:00:27]} 12. exd5 {[%emt 0:01:46]} Qxd5 {[%emt 0:00:33]} 13. Nc3 {[%emt 0:02:55]} Qc6 {[%emt 0:00:55]} 14. Qg4 {[%emt 0:03:42]} O-O {[%emt 0:03:55]} 15. Rb1 {[%emt 0:04:41]} b6 {[%emt 0:03:48]} 16. Qh4 {[%emt 0:04:57]} Bb7 {[%emt 0:03:07]} 17. f3 {[%emt 0:01:30]} Qd7 {[%emt 0:03:26]} 18. Ne2 {[%emt 0:03:39]} a5 {[%emt 0:02:17]} 19. Be3 {[%emt 0:04:07]} e5 {[%emt 0:05:00]} 20. Rbd1 {[%emt 0:03:10]} f5 {[%emt 0:02:39]} 21. Bh6 {[%emt 0:03:07]} Rfe8 {[%emt 0:10:53]} 22. Rfe1 {[%emt 0:04:22]} a4 {[%emt 0:03:17]} 23. Bxg7 {[%emt 0:02:53]} Kxg7 {[%emt 0:00:16]} 24. b4 {[%emt 0:01:43]} Qc6 {[%emt 0:03:35]} 25. bxc5 {[%emt 0:03:31]} bxc5 {[%emt 0:00:32]} 26. Nc3 {[%emt 0:03:32]} a3 {[%emt 0:11:52]} 27. Rb1 {[%emt 0:03:08]} Qd7 {[%emt 0:10:27]} 28. bxa3 {[%emt 0:02:59]} Rxa3 {[%emt 0:00:22]} 1/2-1/2

[Event "Najdorf Memorial-A 2022"]
[Site "Warsaw"]
[Date "2022.07.09"]
[Round "1.12"]
[White "Backiel, Hubert"]
[Black "Rejniak, Zuzanna"]
[Result "1/2-1/2"]
[ECO "B90"]
[WhiteElo "2045"]
[BlackElo "1813"]
[Annotator "NA RC"]
[PlyCount "85"]
[EventDate "2022.07.09"]
[EventType "swiss"]
[EventCountry "POL"]
[SourceTitle "playchess.com"]
[Source "ChessBase"]
[SourceQuality "1"]
[TimeControl "40/5400+30:1800+30"]

1. e4 {[%emt 0:00:03]} c5 {[%emt 0:00:05]} 2. Nf3 {[%emt 0:00:03]} d6 {[%emt 0:00:06]} 3. d4 {[%emt 0:00:04]} cxd4 {[%emt 0:00:06]} 4. Nxd4 {[%emt 0:00:05]} Nf6 {[%emt 0:00:07]} 5. Nc3 {[%emt 0:00:04]} a6 {[%emt 0:00:06]} 6. Be3 {[%emt 0:00:23]} e5 {[%emt 0:00:15]} 7. Nb3 {[%emt 0:00:05]} Be6 {[%emt 0:00:24]} 8. Be2 {[%emt 0:00:32]} Be7 {[%emt 0:02:09]} 9. Nd5 {[%emt 0:00:53]} Nxd5 {[%emt 0:10:13]} 10. exd5 {[%emt 0:00:09]} Bf5 {[%emt 0:01:40]} 11. Qd2 {[%emt 0:05:09]} Nd7 {[%emt 0:04:16]} 12. O-O {[%emt 0:02:42]} Rc8 {[%emt 0:07:37]} 13. c4 {[%emt 0:00:24]} O-O {[%emt 0:05:03]} 14. Na5 {[%emt 0:00:58]} Qc7 {[%emt 0:02:24]} 15. b4 {[%emt 0:00:16]} Nf6 {[%emt 0:14:54]} 16. f3 {[%emt 0:06:24]} Qd7 {[%emt 0:06:37]} 17. Rac1 {[%emt 0:07:22]} Bd8 {[%emt 0:12:08]} 18. Nb3 {[%emt 0:00:57]} b6 {[%emt 0:07:51]} 19. Rfd1 {[%emt 0:04:30]} Qa7 {[%emt 0:10:41]} 20. Kh1 {[%emt 0:23:50]} Re8 {[%emt 0:03:27]} 21. a4 {[%emt 0:05:06]} Qa8 {[%emt 0:02:22]} 22. Ra1 {[%emt 0:15:16]} a5 {[%emt 0:00:55]} 23. c5 {[%emt 0:07:58]} bxc5 {[%emt 0:00:59]} 24. Bb5 {[%emt 0:02:36]} cxb4 {[%emt 0:01:12]} 25. Bxe8 {[%emt 0:00:38]} Nxe8 {[%emt 0:00:59]} 26. Rac1 {[%emt 0:01:32]} Bd7 {[%emt 0:01:48]} 27. Rxc8 {[%emt 0:02:27]} Qxc8 {[%emt 0:00:04]} 28. Rc1 {[%emt 0:00:31]} Qa8 {[%emt 0:00:03]} 29. Qd3 {[%emt 0:04:29]} h6 {[%emt 0:02:27]} 30. f4 {[%emt 0:00:56]} exf4 {[%emt 0:00:44]} 31. Bxf4 {[%emt 0:00:17]} Bxa4 {[%emt 0:01:30]} 32. Nd2 {[%emt 0:03:01]} Nf6 {[%emt 0:00:52]} 33. Qg3 {[%emt 0:02:41]} Kh8 {[%emt 0:02:05]} 34. Nc4 {[%emt 0:01:03]} Qxd5 {[%emt 0:00:26]} 35. Nxd6 {[%emt 0:00:22]} Nh5 {[%emt 0:00:34]} 36. Qg4 {[%emt 0:01:33]} Nxf4 {[%emt 0:00:16]} 37. Qxf4 {[%emt 0:00:07]} Kg8 {[%emt 0:00:31]} 38. h4 {[%emt 0:00:49]} Bc6 {[%emt 0:00:06]} 39. Rxc6 {[%emt 0:02:47]} Qxc6 {[%emt 0:00:03]} 40. Qxf7+ {[%emt 0:00:00]} Kh7 {[%emt 0:00:00]} 41. Qf5+ {[%emt 0:03:48]} Kg8 {[%emt 0:00:15]} 42. Qe6+ {[%emt 0:00:11]} Kh7 {[%emt 0:00:15]} 43. Qf5+ 1/2-1/2

[Event "Najdorf Memorial-A 2022"]
[Site "Warsaw"]
[Date "2022.07.09"]
[Round "1.12"]
[White "Lewandrowski, Tomasz"]
[Black "Mickiewicz, Piotr"]
[Result "1-0"]
[ECO "A45"]
[WhiteElo "1902"]
[BlackElo "2284"]
[Annotator "RC"]
[PlyCount "265"]
[EventDate "2022.07.09"]
[EventType "swiss"]
[EventCountry "POL"]
[SourceTitle "playchess.com"]
[Source "ChessBase"]
[SourceQuality "1"]
[TimeControl "40/5400+30:1800+30"]

1. d4 {[%emt 0:00:03]} Nf6 {[%emt 0:03:29]} 2. Nc3 {[%emt 0:00:23]} d5 {[%emt 0:00:45]} 3. Bf4 {[%emt 0:00:45]} a6 {[%emt 0:00:54]} 4. e3 {[%emt 0:00:53]} c5 {[%emt 0:00:53]} 5. h4 {[%emt 0:07:38]} Nc6 {[%emt 0:01:08]} 6. Qd2 {[%emt 0:03:19]} Bf5 {[%emt 0:08:07]} 7. a3 {[%emt 0:02:24]} e6 {[%emt 0:08:53]} 8. f3 {[%emt 0:02:52]} h5 {[%emt 0:14:49]} 9. Nge2 {[%emt 0:13:11]} Rc8 {[%emt 0:18:26]} 10. Bg5 {[%emt 0:11:13]} cxd4 {[%emt 0:07:06]} 11. Nxd4 {[%emt 0:03:00]} Nxd4 {[%emt 0:01:01]} 12. exd4 {[%emt 0:01:10]} Bd6 {[%emt 0:02:18]} 13. Bd3 {[%emt 0:06:42]} Bg3+ {[%emt 0:05:37]} 14. Kd1 {[%emt 0:09:06]} Bxd3 {[%emt 0:02:45]} 15. Qxd3 {[%emt 0:00:12]} Qc7 {[%emt 0:07:08]} 16. Ne2 {[%emt 0:06:36]} Bd6 {[%emt 0:00:12]} 17. Bxf6 {[%emt 0:01:29]} gxf6 {[%emt 0:00:02]} 18. c3 {[%emt 0:05:21]} Ke7 {[%emt 0:04:37]} 19. Qe3 {[%emt 0:04:36]} Rhg8 {[%emt 0:03:38]} 20. Qf2 {[%emt 0:00:47]} Bg3 {[%emt 0:02:40]} 21. Qe3 {[%emt 0:00:18]} Bd6 {[%emt 0:00:42]} 22. Qf2 {[%emt 0:00:08]} b5 {[%emt 0:02:42]} 23. f4 {[%emt 0:01:32]} f5 {[%emt 0:00:16]} 24. g3 {[%emt 0:00:58]} Rg4 {[%emt 0:01:32]} 25. Rf1 {[%emt 0:01:25]} Rcg8 {[%emt 0:00:06]} 26. Qe3 {[%emt 0:00:46]} Qc4 {[%emt 0:00:54]} 27. Kc2 {[%emt 0:01:38]} a5 {[%emt 0:00:03]} 28. Rf3 {[%emt 0:03:13]} a4 {[%emt 0:00:22]} 29. Re1 {[%emt 0:01:22]} Qb3+ {[%emt 0:00:25]} 30. Kc1 {[%emt 0:01:02]} Bxa3 {[%emt 0:02:40]} 31. bxa3 {[%emt 0:00:28]} Qxa3+ {[%emt 0:00:02]} 32. Kd2 {[%emt 0:02:56]} Qa2+ {[%emt 0:00:23]} 33. Kd3 {[%emt 0:01:21]} Qc4+ {[%emt 0:00:57]} 34. Kd2 {[%emt 0:00:26]} Qa2+ {[%emt 0:00:03]} 35. Kd3 {[%emt 0:00:09]} Rc8 {[%emt 0:01:11]} 36. Qd2 {[%emt 0:01:00]} Qb3 {[%emt 0:01:02]} 37. Ke3 {[%emt 0:02:27]} Rgg8 {[%emt 0:00:39]} 38. Kf2 {[%emt 0:00:35]} Rc4 {[%emt 0:00:25]} 39. Nc1 {[%emt 0:01:37]} Qa3 {[%emt 0:00:19]} 40. Na2 {[%emt 0:00:00]} Rgc8 {[%emt 0:00:00]} 41. Rb1 {[%emt 0:08:12]} Rb8 {[%emt 0:08:28]} 42. Re3 {[%emt 0:00:43]} Qd6 {[%emt 0:01:39]} 43. Rb4 {[%emt 0:02:06]} Qc6 {[%emt 0:06:23]} 44. Qe2 {[%emt 0:01:23]} Rh8 {[%emt 0:03:00]} 45. Rxc4 {[%emt 0:01:50]} Qxc4 {[%emt 0:00:23]} 46. Qxc4 {[%emt 0:00:14]} bxc4 {[%emt 0:00:23]} 47. Re2 {[%emt 0:01:38]} Rb8 {[%emt 0:00:08]} 48. Nb4 {[%emt 0:00:06]} Kd6 {[%emt 0:00:16]} 49. Ra2 {[%emt 0:01:15]} Ra8 {[%emt 0:00:02]} 50. Ke3 {[%emt 0:05:48]} Rg8 {[%emt 0:05:45]} 51. Kf3 {[%emt 0:01:59]} Ra8 {[%emt 0:00:03]} 52. Nc2 {[%emt 0:02:11]} Kc6 {[%emt 0:02:34]} 53. Rb2 {[%emt 0:00:32]} f6 {[%emt 0:02:28]} 54. Na3 {[%emt 0:00:47]} Kc7 {[%emt 0:01:00]} 55. Rb1 {[%emt 0:00:56]} Kc6 {[%emt 0:00:48]} 56. Rb4 {[%emt 0:03:24]} Kc7 {[%emt 0:00:04]} 57. Ke2 {[%emt 0:00:09]} Rg8 {[%emt 0:00:57]} 58. Rxa4 {[%emt 0:01:11]} Rxg3 {[%emt 0:00:03]} 59. Nb1 {[%emt 0:01:16]} Rg4 {[%emt 0:02:37]} 60. Ke3 {[%emt 0:03:00]} Rxh4 {[%emt 0:00:19]} 61. Nd2 {[%emt 0:00:34]} Rh1 {[%emt 0:01:05]} 62. Nf3 {[%emt 0:00:39]} Rd1 {[%emt 0:00:04]} 63. Ke2 {[%emt 0:00:38]} Rd3 {[%emt 0:00:39]} 64. Ra3 {[%emt 0:00:03]} Kb6 {[%emt 0:00:39]} 65. Ne1 {[%emt 0:00:12]} Rg3 {[%emt 0:00:19]} 66. Nf3 {[%emt 0:00:09]} Rg2+ {[%emt 0:00:25]} 67. Ke3 {[%emt 0:00:26]} Kb5 {[%emt 0:01:36]} 68. Ra1 {[%emt 0:00:14]} Rc2 {[%emt 0:00:28]} 69. Ra3 {[%emt 0:00:17]} Rc1 {[%emt 0:00:22]} 70. Kd2 {[%emt 0:00:46]} Rb1 {[%emt 0:00:30]} 71. Ra8 {[%emt 0:00:53]} Rb2+ {[%emt 0:00:12]} 72. Ke3 {[%emt 0:00:50]} Rc2 {[%emt 0:00:01]} 73. Ra3 {[%emt 0:00:18]} Kb6 {[%emt 0:00:04]} 74. Ng1 {[%emt 0:00:25]} h4 {[%emt 0:00:05]} 75. Ne2 {[%emt 0:00:19]} h3 {[%emt 0:00:39]} 76. Ra1 {[%emt 0:00:33]} Kc6 {[%emt 0:02:26]} 77. Rh1 {[%emt 0:00:02]} Kd7 {[%emt 0:00:06]} 78. Rxh3 {[%emt 0:00:10]} Ke7 {[%emt 0:00:01]} 79. Rh7+ Ke8 80. Ra7 {[%emt 0:01:31]} Kf8 {[%emt 0:00:01]} 81. Kf2 {[%emt 0:00:57]} Rd2 {[%emt 0:00:10]} 82. Ke1 {[%emt 0:00:16]} Rd3 {[%emt 0:00:02]} 83. Ra1 {[%emt 0:00:32]} Rf3 {[%emt 0:00:07]} 84. Kd2 {[%emt 0:00:27]} Rd3+ {[%emt 0:00:01]} 85. Ke1 {[%emt 0:00:51]} Rf3 {[%emt 0:00:02]} 86. Ra2 {[%emt 0:00:13]} Kf7 {[%emt 0:00:04]} 87. Ra7+ {[%emt 0:00:34]} Kf8 {[%emt 0:00:16]} 88. Rh7 {[%emt 0:00:18]} Ke8 {[%emt 0:00:02]} 89. Rg7 {[%emt 0:00:16]} Rh3 {[%emt 0:00:17]} 90. Rg3 {[%emt 0:00:28]} Rh1+ {[%emt 0:00:13]} 91. Kf2 {[%emt 0:00:36]} Rd1 {[%emt 0:00:02]} 92. Re3 {[%emt 0:01:48]} Kf7 {[%emt 0:00:03]} 93. Rh3 {[%emt 0:00:18]} Kg7 {[%emt 0:00:17]} 94. Kg3 {[%emt 0:00:51]} Rd2 {[%emt 0:00:21]} 95. Rh2 {[%emt 0:00:25]} Rd3+ {[%emt 0:01:06]} 96. Kf2 {[%emt 0:00:16]} Rd2 {[%emt 0:00:05]} 97. Ke1 {[%emt 0:00:13]} Ra2 {[%emt 0:00:10]} 98. Kd1 {[%emt 0:00:26]} Ra3 {[%emt 0:00:10]} 99. Kc2 {[%emt 0:00:31]} Ra2+ {[%emt 0:00:01]} 100. Kb1 {[%emt 0:00:13]} Rd2 {[%emt 0:00:16]} 101. Kc1 {[%emt 0:00:39]} Ra2 {[%emt 0:00:02]} 102. Kd1 {[%emt 0:00:12]} Ra3 {[%emt 0:00:12]} 103. Rh3 {[%emt 0:00:19]} Ra2 {[%emt 0:00:04]} 104. Rf3 {[%emt 0:00:23]} Kg6 {[%emt 0:00:24]} 105. Nc1 {[%emt 0:00:42]} Rb2 {[%emt 0:00:11]} 106. Re3 {[%emt 0:00:22]} Kf7 {[%emt 0:00:12]} 107. Re2 {[%emt 0:00:11]} Rb6 {[%emt 0:01:12]} 108. Na2 {[%emt 0:00:20]} Rb1+ {[%emt 0:00:11]} 109. Kd2 {[%emt 0:00:34]} Rb2+ {[%emt 0:02:23]} 110. Ke3 {[%emt 0:00:18]} Rb3 {[%emt 0:00:01]} 111. Rc2 {[%emt 0:00:23]} Rb8 {[%emt 0:00:09]} 112. Nb4 {[%emt 0:00:09]} Rh8 {[%emt 0:00:03]} 113. Rf2 {[%emt 0:00:24]} Ke7 {[%emt 0:00:25]} 114. Rf3 {[%emt 0:00:11]} Rh2 {[%emt 0:00:14]} 115. Rg3 {[%emt 0:00:25]} Kf7 {[%emt 0:00:13]} 116. Kf3 {[%emt 0:00:49]} Rh1 {[%emt 0:00:44]} 117. Kg2 {[%emt 0:01:26]} Rd1 {[%emt 0:01:52]} 118. Re3 {[%emt 0:00:43]} Rb1 {[%emt 0:00:47]} 119. Na6 {[%emt 0:00:13]} Rb6 {[%emt 0:03:13]} 120. Nc5 {[%emt 0:00:10]} Rc6 {[%emt 0:02:05]} 121. Re2 {[%emt 0:02:22]} Ke7 {[%emt 0:00:26]} 122. Ra2 {[%emt 0:00:10]} e5 {[%emt 0:02:09]} 123. Ra7+ {[%emt 0:01:08]} Ke8 {[%emt 0:00:13]} 124. Ra6 {[%emt 0:00:29]} Rxa6 {[%emt 0:03:51]} 125. Nxa6 {[%emt 0:00:03]} Kd7 {[%emt 0:01:06]} 126. Kf2 {[%emt 0:00:24]} Kc6 {[%emt 0:00:22]} 127. Ke3 {[%emt 0:00:40]} Kd6 {[%emt 0:00:04]} 128. Nb4 {[%emt 0:00:18]} Ke6 {[%emt 0:00:06]} 129. Nc2 {[%emt 0:00:17]} Kd6 {[%emt 0:00:12]} 130. Ne1 {[%emt 0:00:10]} exf4+ {[%emt 0:00:58]} 131. Kxf4 {[%emt 0:00:18]} Kc6 {[%emt 0:00:05]} 132. Nc2 {[%emt 0:00:57]} Kb5 {[%emt 0:00:04]} 133. Nb4 {[%emt 0:00:17]} 1-0